fUST/lending_fUST_20250625
["ID","MTS","AMOUNT","RATE_DAILY","PERIOD"]
[367550928,1750852241743,-639.04,0.00017337,2]
[367550929,1750852241753,-1049.19,0.00017337,2]
[367550931,1750852241764,-607.31986083,0.00017337,2]
[367550933,1750852241775,-460.0,0.00017338,2]
[367550936,1750852241785,-338.92,0.00017338,2]
[367550938,1750852241796,-460.0,0.00017338,2]
[367550940,1750852241806,-460.0,0.00017338,2]
[367550941,1750852241815,-460.0,0.00017338,2]
[367550943,1750852241825,-460.0,0.00017338,2]
[367550945,1750852241834,-460.0,0.00017338,2]
[367550947,1750852241843,-460.0,0.00017338,2]
[367550949,1750852241853,-460.0,0.00017338,2]
[367550951,1750852241862,-496.63,0.00017338,2]
[367550953,1750852241872,-460.0,0.00017338,2]
[367550955,1750852241881,-460.0,0.00017338,2]
[367550957,1750852241890,-358.45,0.00017338,2]
[367550959,1750852241900,-460.0,0.00017338,2]
[367550961,1750852241909,-460.0,0.00017338,2]
[367550963,1750852241918,-460.0,0.00017338,2]
[367550965,1750852241927,-460.0,0.00017338,2]
[367550967,1750852241938,-460.0,0.00017338,2]
[367550970,1750852241953,-460.0,0.00017338,2]
[367550972,1750852241968,-460.0,0.00017338,2]
[367550975,1750852241983,-500.0,0.00017561,2]
[367550977,1750852241998,-500.0,0.00017561,2]
[367550980,1750852242011,-158.978938,0.00017561,2]
[367550982,1750852242022,-500.0,0.000176,2]
[367550984,1750852242035,-500.0,0.000176,2]
[367550987,1750852242048,-1468.05,0.00017605,2]
[367550989,1750852242061,-460.0,0.00017605,2]
[367550991,1750852242074,-460.0,0.00017605,2]
[367550994,1750852242087,-1208.02,0.00017605,2]
[367550996,1750852242099,-1127.09,0.00017605,2]
[367550998,1750852242112,-460.0,0.00017605,2]
[367551001,1750852242125,-460.0,0.00017605,2]
[367551003,1750852242139,-2214.92,0.00017605,2]
[367551005,1750852242151,-2016.19970532,0.00017605,2]
[367551377,1750852245981,-460.0,0.00016783,2]
[367551379,1750852245992,-1763.78,0.00016783,2]
[367551382,1750852246004,-460.0,0.00016784,2]
[367551384,1750852246015,-460.0,0.00016784,2]
[367551386,1750852246026,-5000.0,0.00016887,2]
[367551388,1750852246037,-460.0,0.00017057,2]
[367551391,1750852246048,-460.0,0.00017058,2]
[367551393,1750852246059,-460.0,0.00017058,2]
[367551395,1750852246071,-460.0,0.00017058,2]
[367551397,1750852246081,-365.32510107,0.00017332,2]
[367551429,1750852246424,-94.67489893,0.00017332,2]
[367551431,1750852246434,-552.58,0.00017332,2]
[367551433,1750852246443,-357.33029468,0.00017605,2]
[367551435,1750852246452,-460.0,0.00017605,2]
[367551437,1750852246461,-460.0,0.00017605,2]
[367551439,1750852246471,-460.0,0.00017606,2]
[367551441,1750852246480,-460.0,0.00017606,2]
[367551466,1750852246701,-460.0,0.00017606,2]
[367551468,1750852246715,-506.51,0.00017606,2]
[367551470,1750852246724,-460.0,0.00017606,2]
[367551472,1750852246734,-460.0,0.00017606,2]
[367551474,1750852246743,-460.0,0.00017606,2]
[367551476,1750852246753,-460.0,0.00017606,2]
[367551478,1750852246762,-847.26,0.00017606,2]
[367551480,1750852246775,-460.0,0.00017606,2]
[367551482,1750852246786,-460.0,0.00017606,2]
[367551484,1750852246795,-460.0,0.00017606,2]
[367551486,1750852246804,-1244.86,0.00017606,2]
[367551488,1750852246814,-1735.04,0.00017606,2]
[367551490,1750852246824,-460.0,0.00017606,2]
[367551492,1750852246834,-699.1,0.00017606,2]
[367551494,1750852246843,-486.19,0.00017606,2]
[367551496,1750852246852,-460.0,0.00017606,2]
[367551498,1750852246861,-595.82,0.00017606,2]
[367551500,1750852246871,-460.0,0.00017606,2]
[367551503,1750852246882,-460.0,0.00017606,2]
[367551505,1750852246895,-460.0,0.00017606,2]
[367551507,1750852246905,-460.0,0.00017606,2]
[367551509,1750852246915,-460.0,0.00017606,2]
[367551511,1750852246924,-460.0,0.00017606,2]
[367551513,1750852246933,-505.57,0.00017606,2]
[367551515,1750852246942,-460.0,0.00017606,2]
[367551517,1750852246952,-460.0,0.00017606,2]
[367551519,1750852246961,-284.75716652,0.00017606,2]
[367551521,1750852246970,-2569.74,0.00017606,2]
[367551523,1750852246979,-460.0,0.00017606,2]
[367551525,1750852246988,-460.0,0.00017606,2]
[367551527,1750852246997,-632.52,0.00017606,2]
[367551529,1750852247006,-460.0,0.00017606,2]
[367551531,1750852247017,-460.0,0.00017606,2]
[367551534,1750852247027,-460.0,0.00017606,2]
[367551536,1750852247035,-460.0,0.00017606,2]
[367551538,1750852247045,-460.0,0.00017606,2]
[367551540,1750852247054,-475.83,0.00017607,2]
[367551542,1750852247063,-1113.57,0.00017611,2]
[367551544,1750852247072,-460.0,0.00017611,2]
[367551546,1750852247081,-460.0,0.00017611,2]
[367551548,1750852247090,-1555.87,0.00017611,2]
[367551550,1750852247099,-460.0,0.00017611,2]
[367551552,1750852247108,-1030.23,0.00017611,2]
[367551554,1750852247119,-1205.35,0.00017611,2]
[367551556,1750852247127,-2793.58,0.00017611,2]
[367551558,1750852247136,-639.04,0.00017611,2]
[367551560,1750852247145,-1049.19,0.00017611,2]
[367551562,1750852247155,-460.0,0.00017612,2]
[367551564,1750852247164,-460.0,0.00017612,2]
[367551566,1750852247173,-460.0,0.00017612,2]
[367551568,1750852247182,-460.0,0.00017612,2]
[367551570,1750852247191,-460.0,0.00017612,2]
[367551572,1750852247200,-460.0,0.00017612,2]
[367551574,1750852247209,-460.0,0.00017612,2]
[367551576,1750852247217,-496.63,0.00017612,2]
[367551578,1750852247226,-460.0,0.00017612,2]
[367551580,1750852247235,-460.0,0.00017612,2]
[367551582,1750852247245,-460.0,0.00017612,2]
[367551584,1750852247254,-460.0,0.00017612,2]
[367551586,1750852247263,-500.0,0.00017615,2]
[367551588,1750852247272,-500.0,0.00017615,2]
[367551590,1750852247281,-424.9544525,0.00017615,2]
[367551592,1750852247290,-302.07678004,0.00017615,2]
[367551594,1750852247299,-500.0,0.00017629,2]
[367551596,1750852247308,-500.0,0.00017629,2]
[367551598,1750852247317,-500.0,0.00017631,2]
[367551600,1750852247326,-500.60625329,0.00017631,2]
[367551602,1750852247335,-503.14788817,0.00017631,2]
[367551604,1750852247344,-440.48067711,0.00017665,2]
[367551606,1750852247353,-500.55881292,0.00017668,2]
[367551608,1750852247362,-500.0,0.00017674,2]
[367551610,1750852247371,-500.0,0.00017674,2]
[367551612,1750852247380,-500.0,0.00017674,2]
[367551614,1750852247389,-500.0,0.00017674,2]
[367551616,1750852247398,-500.0,0.00017674,2]
[367551618,1750852247407,-500.0,0.00017684,2]
[367551620,1750852247416,-500.0,0.00017684,2]
[367551622,1750852247425,-501.57667532,0.00017708,2]
[367551624,1750852247434,-500.876052,0.00017708,2]
[367551626,1750852247443,-500.0,0.00017708,2]
[367551628,1750852247456,-160.0,0.00017726,2]
[367551630,1750852247465,-836.86812089,0.00017726,2]
[367551632,1750852247474,-230.22714675,0.00017726,2]
[367551634,1750852247486,-12558.06783089,0.00017726,2]
[367551636,1750852247496,-160.0,0.00017726,2]
[367551638,1750852247505,-524.21181985,0.00017726,2]
[367551640,1750852247515,-160.0,0.00017726,2]
[367551642,1750852247525,-213.69531788,0.00017726,2]
[367551645,1750852247535,-425.18553072,0.00017726,2]
[367551647,1750852247545,-846.80634355,0.00017726,2]
[367551649,1750852247554,-160.0,0.00017726,2]
[367551651,1750852247562,-160.0,0.00017726,2]
[367551652,1750852247571,-160.0,0.00017726,2]
[367551655,1750852247580,-298.0,0.0001778,2]
[367551657,1750852247590,-1864.05570054,0.00017799,2]
[367551659,1750852247599,-239.84784153,0.00017863,2]
[367551661,1750852247608,-441.09,0.00017879,2]
[367551663,1750852247617,-460.0,0.00017879,2]
[367551665,1750852247627,-1208.02,0.00017879,2]
[367551667,1750852247636,-1127.09,0.00017879,2]
[367551669,1750852247645,-296.13431638,0.00017879,2]
[367551671,1750852247655,-460.0,0.00017879,2]
[367551673,1750852247664,-2214.92,0.00017879,2]
[367551675,1750852247673,-2373.53,0.00017879,2]
[367551677,1750852247683,-460.0,0.00017879,2]
[367551679,1750852247693,-418.01,0.00017879,2]
[367551681,1750852247705,-460.0,0.0001788,2]
[367551683,1750852247714,-460.0,0.0001788,2]
[367551685,1750852247723,-506.51,0.0001788,2]
[367551687,1750852247733,-460.0,0.0001788,2]
[367551689,1750852247743,-460.0,0.0001788,2]
[367551691,1750852247752,-325.00146527,0.0001788,2]
[367551693,1750852247762,-460.0,0.0001788,2]
[367551695,1750852247772,-847.26,0.0001788,2]
[367551697,1750852247782,-460.0,0.0001788,2]
[367551699,1750852247791,-460.0,0.0001788,2]
[367551701,1750852247800,-1244.86,0.0001788,2]
[367551703,1750852247809,-1735.04,0.0001788,2]
[367551705,1750852247819,-460.0,0.0001788,2]
[367551707,1750852247828,-699.1,0.0001788,2]
[367551709,1750852247837,-486.19,0.0001788,2]
[367551711,1750852247846,-460.0,0.0001788,2]
[367551713,1750852247856,-595.82,0.0001788,2]
[367551715,1750852247865,-460.0,0.0001788,2]
[367551717,1750852247874,-460.0,0.0001788,2]
[367551719,1750852247883,-460.0,0.0001788,2]
[367551721,1750852247892,-150.32,0.0001788,2]
[367551723,1750852247901,-460.0,0.0001788,2]
[367551725,1750852247911,-460.0,0.0001788,2]
[367551727,1750852247920,-505.57,0.0001788,2]
[367551729,1750852247930,-460.0,0.0001788,2]
[367551731,1750852247939,-460.0,0.0001788,2]
[367551733,1750852247948,-2569.74,0.0001788,2]
[367551735,1750852247957,-460.0,0.0001788,2]
[367551737,1750852247966,-460.0,0.0001788,2]
[367551739,1750852247975,-632.52,0.0001788,2]
[367551741,1750852247985,-460.0,0.0001788,2]
[367551743,1750852247994,-460.0,0.0001788,2]
[367551745,1750852248003,-460.0,0.0001788,2]
[367551747,1750852248012,-460.0,0.0001788,2]
[367551749,1750852248022,-460.0,0.0001788,2]
[367551751,1750852248032,-1113.57,0.00017885,2]
[367551753,1750852248041,-460.0,0.00017885,2]
[367551755,1750852248051,-460.0,0.00017885,2]
[367551757,1750852248061,-1555.87,0.00017885,2]
[367551759,1750852248071,-460.0,0.00017885,2]
[367551762,1750852248081,-1030.23,0.00017885,2]
[367551764,1750852248090,-1205.35,0.00017885,2]
[367551766,1750852248100,-2793.58,0.00017885,2]
[367551768,1750852248110,-639.04,0.00017885,2]
[367551770,1750852248120,-1049.19,0.00017885,2]
[367551772,1750852248129,-460.0,0.00017886,2]
[367551774,1750852248138,-460.0,0.00017886,2]
[367551776,1750852248148,-460.0,0.00017886,2]
[367551778,1750852248157,-239.5883594,0.00017886,2]
[367551780,1750852248167,-460.0,0.00017886,2]
[367551782,1750852248177,-460.0,0.00017886,2]
[367551784,1750852248186,-460.0,0.00017886,2]
[367551786,1750852248195,-496.63,0.00017886,2]
[367551788,1750852248205,-194.58362433,0.00017886,2]
[367551790,1750852248214,-460.0,0.00017886,2]
[367551792,1750852248224,-366.0085437,0.0001789,2]
[367551794,1750852248234,-366.0085437,0.0001789,2]
[367551796,1750852248243,-366.0085437,0.0001789,2]
[367551798,1750852248253,-366.0085437,0.0001789,2]
[367551800,1750852248263,-366.0085437,0.0001789,2]
[367551802,1750852248272,-366.0085437,0.0001789,2]
[367551804,1750852248282,-366.0085437,0.0001789,2]
[367551806,1750852248291,-366.0085437,0.0001789,2]
[367551808,1750852248300,-366.0085437,0.0001789,2]
[367551810,1750852248310,-366.0085437,0.0001789,2]
[367551812,1750852248319,-366.0085437,0.0001789,2]
[367551814,1750852248329,-371.9445532,0.0001789,2]
[367551816,1750852248339,-6307.76513774,0.000179,2]
[367551818,1750852248349,-373.0,0.00017965,2]
[367551820,1750852248358,-2910.0,0.00018017,2]
[367551823,1750852248368,-615.0,0.00018058,2]
[367551825,1750852248378,-500.0,0.00018068,2]
[367551827,1750852248387,-615.0,0.00018113,2]
[367551829,1750852248396,-731.7673664,0.00018137,2]
[367551831,1750852248405,-6307.76513756,0.00018141,2]
[367551833,1750852248414,-1208.02,0.00018153,2]
[367551835,1750852248424,-1127.09,0.00018153,2]
[367551837,1750852248434,-460.0,0.00018153,2]
[367551839,1750852248443,-2214.92,0.00018153,2]
[367551841,1750852248452,-2373.53,0.00018153,2]
[367551843,1750852248462,-460.0,0.00018153,2]
[367551845,1750852248472,-460.0,0.00018154,2]
[367551847,1750852248481,-460.0,0.00018154,2]
[367551849,1750852248490,-506.51,0.00018154,2]
[367551850,1750852248500,-481.75,0.00018154,2]
[367551853,1750852248509,-460.0,0.00018154,2]
[367551855,1750852248521,-460.0,0.00018154,2]
[367551857,1750852248531,-847.26,0.00018154,2]
[367551859,1750852248541,-460.0,0.00018154,2]
[367551861,1750852248553,-460.0,0.00018154,2]
[367551863,1750852248562,-1244.86,0.00018154,2]
[367551865,1750852248572,-1735.04,0.00018154,2]
[367551867,1750852248581,-460.0,0.00018154,2]
[367551869,1750852248590,-699.1,0.00018154,2]
[367551871,1750852248600,-486.19,0.00018154,2]
[367551873,1750852248610,-200.54006965,0.00018154,2]
[367551875,1750852248619,-595.82,0.00018154,2]
[367551877,1750852248628,-460.0,0.00018154,2]
[367551879,1750852248638,-460.0,0.00018154,2]
[367551881,1750852248647,-460.0,0.00018154,2]
[367551883,1750852248657,-460.0,0.00018154,2]
[367551885,1750852248666,-505.57,0.00018154,2]
[367551887,1750852248675,-460.0,0.00018154,2]
[367551889,1750852248685,-460.0,0.00018154,2]
[367551891,1750852248696,-2569.74,0.00018154,2]
[367551893,1750852248707,-460.0,0.00018154,2]
[367551895,1750852248716,-632.52,0.00018154,2]
[367551897,1750852248728,-234.76,0.00018154,2]
[367551899,1750852248737,-460.0,0.00018154,2]
[367551901,1750852248748,-208.15129651,0.00018154,2]
[367551903,1750852248757,-460.0,0.00018154,2]
[367551905,1750852248767,-460.0,0.00018154,2]
[367551907,1750852248779,-1113.57,0.00018159,2]
[367551909,1750852248789,-460.0,0.00018159,2]
[367551911,1750852248800,-460.0,0.00018159,2]
[367551914,1750852248810,-1555.87,0.00018159,2]
[367551916,1750852248819,-460.0,0.00018159,2]
[367551918,1750852248828,-1030.23,0.00018159,2]
[367551920,1750852248837,-1205.35,0.00018159,2]
[367551922,1750852248847,-2793.58,0.00018159,2]
[367551924,1750852248856,-639.04,0.00018159,2]
[367551926,1750852248866,-1049.19,0.00018159,2]
[367551928,1750852248874,-460.0,0.0001816,2]
[367551930,1750852248883,-460.0,0.0001816,2]
[367551932,1750852248892,-460.0,0.0001816,2]
[367551934,1750852248902,-460.0,0.0001816,2]
[367551935,1750852248911,-460.0,0.0001816,2]
[367551938,1750852248920,-496.63,0.0001816,2]
[367551939,1750852248930,-460.0,0.0001816,2]
[367551941,1750852248939,-1000.0,0.00018163,2]
[367551943,1750852248948,-1000.0,0.00018177,2]
[367551945,1750852248958,-2910.0,0.00018218,2]
[367551947,1750852248967,-372.63238286,0.00018222,2]
[367551949,1750852248976,-615.0,0.00018244,2]
[367551951,1750852248986,-420.0,0.00018333,2]
[367551953,1750852248995,-1680.0,0.00018334,2]
[367551955,1750852249004,-1864.05570054,0.00018366,2]
[367551957,1750852249013,-6307.76513756,0.00018383,2]
[367551959,1750852249023,-180.0180018,0.000184,2]
[367551961,1750852249033,-500.0,0.00018408,2]
[367551963,1750852249042,-207.4,0.00018408,2]
[367551965,1750852249051,-49.14666471,0.00018408,2]
[367551985,1750852249238,-450.85333529,0.00018408,2]
[367551987,1750852249247,-500.0,0.00018408,2]
[367551989,1750852249257,-570.32441562,0.00018408,2]
[367551992,1750852249269,-4429.67558438,0.00018408,2]
[367551994,1750852249278,-500.0,0.00018408,2]
[367551996,1750852249287,-500.0,0.00018408,2]
[367551997,1750852249296,-500.0,0.00018408,2]
[367551999,1750852249306,-1688.0,0.00018408,2]
[367552001,1750852249315,-500.0,0.00018408,2]
[367552003,1750852249324,-500.0,0.00018408,2]
[367552005,1750852249333,-500.0,0.00018408,2]
[367552007,1750852249343,-500.0,0.00018408,2]
[367552009,1750852249352,-500.0,0.00018408,2]
[367552011,1750852249361,-500.0,0.00018408,2]
[367552013,1750852249371,-500.0,0.00018408,2]
[367552015,1750852249380,-500.0,0.00018408,2]
[367552017,1750852249389,-500.0,0.00018408,2]
[367552019,1750852249399,-500.0,0.00018408,2]
[367552021,1750852249408,-500.0,0.00018408,2]
[367552023,1750852249418,-500.0,0.00018408,2]
[367552025,1750852249427,-500.0,0.00018408,2]
[367552027,1750852249436,-500.0,0.00018408,2]
[367552029,1750852249445,-500.0,0.00018408,2]
[367552031,1750852249454,-500.0,0.00018408,2]
[367552033,1750852249464,-500.0,0.00018408,2]
[367552035,1750852249473,-500.0,0.00018408,2]
[367552037,1750852249482,-500.0,0.00018408,2]
[367552039,1750852249491,-500.0,0.00018408,2]
[367552040,1750852249500,-500.0,0.00018408,2]
[367552042,1750852249509,-500.0,0.00018408,2]
[367552044,1750852249519,-500.0,0.00018408,2]
[367552046,1750852249528,-500.0,0.00018408,2]
[367552048,1750852249538,-500.0,0.00018408,2]
[367552050,1750852249548,-500.0,0.00018408,2]
[367552052,1750852249558,-500.0,0.00018408,2]
[367552054,1750852249567,-500.0,0.00018408,2]
[367552056,1750852249577,-500.0,0.00018408,2]
[367552058,1750852249587,-500.0,0.00018408,2]
[367552060,1750852249596,-584.53558699,0.00018408,2]
[367552062,1750852249606,-3590.98882864,0.00018408,2]
[367554515,1750852393280,3000.0,0.00023,30]
[367554516,1750852412233,849.65933885,0.00016,2]
[367554517,1750852412255,4150.34066115,0.00016,2]
[367554518,1750852635117,500.0,0.00025498,60]
[367554519,1750852635360,380.00476985,0.00025498,60]
[367554520,1750852656530,158414.0,0.00025498,60]
[367554522,1750852829647,5000.0,0.000161,2]
[367554524,1750852871306,-4992.0,0.00016274,2]
[367554525,1750852873778,164.43118,0.00013699,2]
[367554526,1750853037283,5000.0,0.000161,2]
[367554620,1750853244730,5000.0,0.000161,2]
[367554662,1750853432156,-5000.0,0.00016274,2]
[367554697,1750853432668,-187.82025566,0.00016438,3]
[367554699,1750853432679,-666.0,0.00016438,2]
[367554700,1750853432688,-435.07350483,0.00016681,2]
[367554702,1750853432701,-318.29644765,0.00016681,2]
[367554704,1750853432713,-591.07483161,0.00016681,2]
[367554706,1750853432723,-275.51430995,0.00016771,2]
[367554708,1750853432736,-24.48569005,0.00016771,2]
[367554710,1750853432745,-1200.0,0.00016771,2]
[367554712,1750853432755,-1200.0,0.00016772,2]
[367554713,1750853432764,-1353.58,0.00016773,3]
[367554715,1750853432773,-676.79,0.00016773,3]
[367554716,1750853432782,-338.4,0.00016773,3]
[367554717,1750853432792,-169.2,0.00016773,3]
[367554718,1750853432801,-507.6,0.00016773,3]
[367554719,1750853432811,-500.0,0.00016778,2]
[367554720,1750853432820,-456.54644842,0.00016778,2]
[367554721,1750853432829,-460.0,0.00016778,2]
[367554722,1750853432839,-460.0,0.00016778,2]
[367554723,1750853432848,-460.0,0.00016778,2]
[367554724,1750853432858,-460.0,0.00016778,2]
[367554725,1750853432868,-460.0,0.00016778,2]
[367554726,1750853432877,-301.65975935,0.00016778,2]
[367554736,1750853438079,-158.34024065,0.00016778,2]
[367554737,1750853438089,-460.0,0.00016778,2]
[367554738,1750853438098,-460.0,0.00016778,2]
[367554739,1750853438107,-460.0,0.00016778,2]
[367554740,1750853438116,-460.0,0.00016778,2]
[367554741,1750853438125,-1482.13,0.00016778,2]
[367554742,1750853438135,-460.0,0.00016778,2]
[367554743,1750853438144,-460.0,0.00016778,2]
[367554744,1750853438153,-460.0,0.00016778,2]
[367554745,1750853438162,-460.0,0.00016778,2]
[367554746,1750853438172,-2765.63,0.00016778,2]
[367554747,1750853438181,-460.0,0.00016778,2]
[367554748,1750853438190,-460.0,0.00016778,2]
[367554749,1750853438199,-460.0,0.00016778,2]
[367554750,1750853438209,-460.0,0.00016778,2]
[367554751,1750853438218,-3064.74,0.00016778,2]
[367554752,1750853438227,-460.0,0.00016778,2]
[367554753,1750853438237,-460.0,0.00016778,2]
[367554755,1750853438246,-460.0,0.00016778,2]
[367554756,1750853438255,-460.0,0.00016778,2]
[367554758,1750853438264,-460.0,0.00016778,2]
[367554760,1750853438274,-460.0,0.00016778,2]
[367554762,1750853438283,-460.0,0.00016778,2]
[367554769,1750853438292,-500.0,0.00016778,2]
[367554770,1750853438456,-500.0,0.00016778,2]
[367554771,1750853438466,-2702.51,0.00016778,2]
[367554772,1750853438476,-460.0,0.00016778,2]
[367554773,1750853438486,-460.0,0.00016778,2]
[367554774,1750853438496,-226.54280683,0.00016778,2]
[367554775,1750853438506,-416.5142517,0.00016779,2]
[367554776,1750853438515,-460.0,0.00016779,2]
[367554777,1750853438525,-460.0,0.00016779,2]
[367554778,1750853438535,-460.0,0.00016779,2]
[367554779,1750853438544,-460.0,0.00016779,2]
[367554780,1750853438554,-368.0420577,0.00016779,2]
[367554781,1750853438564,-283.52233192,0.00016779,2]
[367554782,1750853438574,-460.0,0.00016779,2]
[367554783,1750853438583,-460.0,0.00016779,2]
[367554784,1750853438592,-460.0,0.00016779,2]
[367554785,1750853438602,-198.75652941,0.00016779,2]
[367554786,1750853438623,-460.0,0.00016779,2]
[367554787,1750853438632,-460.0,0.00016779,2]
[367554788,1750853438642,-460.0,0.00016779,2]
[367554789,1750853438652,-460.0,0.00016779,2]
[367554790,1750853438662,-460.0,0.00016779,2]
[367554791,1750853438671,-460.0,0.00016779,2]
[367554792,1750853438681,-460.0,0.00016779,2]
[367554793,1750853438691,-460.0,0.00016779,2]
[367554794,1750853438701,-1590.6,0.00016779,2]
[367554795,1750853438711,-2531.11,0.00016779,2]
[367554796,1750853438721,-460.0,0.00016779,2]
[367554797,1750853438730,-460.0,0.00016779,2]
[367554798,1750853438740,-460.0,0.00016779,2]
[367554799,1750853438750,-460.0,0.00016779,2]
[367554800,1750853438761,-460.0,0.00016779,2]
[367554801,1750853438771,-999.7,0.00016779,2]
[367554802,1750853438781,-1646.41,0.00016779,2]
[367554803,1750853438792,-460.0,0.00016779,2]
[367554804,1750853438802,-534.48,0.00016779,2]
[367554805,1750853438811,-471.74,0.00016779,2]
[367554806,1750853438821,-460.0,0.00016779,2]
[367554807,1750853438831,-460.0,0.00016779,2]
[367554808,1750853438840,-460.0,0.00016779,2]
[367554809,1750853438850,-460.0,0.00016779,2]
[367554810,1750853438860,-460.0,0.00016779,2]
[367554811,1750853438870,-460.0,0.00016779,2]
[367554812,1750853438879,-460.0,0.00016779,2]
[367554813,1750853438889,-585.17,0.00016779,2]
[367554814,1750853438898,-460.0,0.00016779,2]
[367554815,1750853438908,-828.45,0.00016779,2]
[367554816,1750853438918,-460.0,0.00016779,2]
[367554817,1750853438927,-500.0,0.00016779,2]
[367554818,1750853438937,-460.0,0.00016779,2]
[367554819,1750853438947,-1780.33,0.00016779,2]
[367554820,1750853438957,-460.0,0.00016779,2]
[367554821,1750853438967,-467.14098332,0.00016779,2]
[367554822,1750853438976,-460.0,0.00016779,2]
[367554823,1750853438986,-500.0,0.00016779,2]
[367554824,1750853438996,-500.0,0.00016779,2]
[367554825,1750853439006,-500.0,0.00016779,2]
[367554826,1750853439016,-500.0,0.00016779,2]
[367554827,1750853439025,-500.0,0.00016779,2]
[367554828,1750853439035,-500.0,0.00016779,2]
[367554829,1750853439045,-460.0,0.00016779,2]
[367554830,1750853439054,-500.0,0.00016779,2]
[367554831,1750853439063,-500.0,0.00016779,2]
[367554832,1750853439073,-168.10702709,0.00016779,2]
[367554833,1750853439083,-500.0,0.00016779,2]
[367554834,1750853439093,-279.51997484,0.00016779,2]
[367554835,1750853439102,-500.0,0.00016779,2]
[367554836,1750853439111,-500.0,0.00016779,2]
[367554837,1750853439120,-218.24340673,0.00016779,2]
[367554838,1750853439130,-500.0,0.00016779,2]
[367554839,1750853439139,-500.0,0.00016779,2]
[367554840,1750853439148,-218.78814851,0.0001678,2]
[367554841,1750853439158,-460.0,0.0001678,2]
[367554842,1750853439167,-320.0,0.0001678,2]
[367554843,1750853439176,-460.0,0.0001678,2]
[367554844,1750853439186,-376.89063049,0.0001678,2]
[367554845,1750853439195,-460.0,0.0001678,2]
[367554846,1750853439204,-460.0,0.0001678,2]
[367554847,1750853439213,-460.0,0.0001678,2]
[367554848,1750853439223,-460.0,0.0001678,2]
[367554849,1750853439232,-460.0,0.0001678,2]
[367554850,1750853439241,-356.58707698,0.0001678,2]
[367554851,1750853439261,-103.41292302,0.0001678,2]
[367554852,1750853439271,-460.0,0.0001678,2]
[367554853,1750853439280,-460.0,0.0001678,2]
[367554854,1750853439289,-460.0,0.0001678,2]
[367554855,1750853439299,-460.0,0.0001678,2]
[367554856,1750853439308,-460.0,0.0001678,2]
[367554857,1750853439319,-460.0,0.0001678,2]
[367554858,1750853439331,-382.69695999,0.0001678,2]
[367554859,1750853439341,-460.0,0.0001678,2]
[367554860,1750853439350,-460.0,0.0001678,2]
[367554861,1750853439359,-460.0,0.0001678,2]
[367554862,1750853439370,-460.0,0.0001678,2]
[367554863,1750853439380,-460.0,0.0001678,2]
[367554864,1750853439389,-460.0,0.0001678,2]
[367554865,1750853439400,-460.0,0.0001678,2]
[367554866,1750853439410,-460.0,0.0001678,2]
[367554867,1750853439419,-460.0,0.0001678,2]
[367554868,1750853439429,-460.0,0.0001678,2]
[367554869,1750853439439,-460.0,0.0001678,2]